[Event "CCT Julius Baer-D2 2024"]
[Site "Online"]
[Date "2024.09.29"]
[Round "3"]
[White "So, Wesley"]
[Black "Sargsyan, Shant"]
[Result "1-0"]
[ECO "C50"]
[WhiteElo "2752"]
[BlackElo "2649"]
[Annotator "RC"]
[PlyCount "131"]
[EventDate "2024.09.25"]
[EventType "swiss"]
[EventCountry "NET"]
[SourceTitle "playchess.com"]
[Source "ChessBase"]
[SourceQuality "1"]
[TimeControl "600+2"]

1. e4 {[%emt 0:00:04]} e5 {[%emt 0:00:03]} 2. Nf3 {[%emt 0:00:00]} Nc6 {[%emt 0:00:01]} 3. Bc4 {[%emt 0:00:01]} Nf6 {[%emt 0:00:00]} 4. d3 {[%emt 0:00:02]} Bc5 {[%emt 0:00:00]} 5. Nc3 {[%emt 0:00:02]} h6 {[%emt 0:00:06]} 6. a3 {[%emt 0:00:18]} d6 {[%emt 0:00:01]} 7. h3 {[%emt 0:00:40]} Ne7 {[%emt 0:00:50]} 8. Na4 {[%emt 0:00:37]} Bb6 {[%emt 0:00:01]} 9. O-O {[%emt 0:00:03]} Ng6 {[%emt 0:00:04]} 10. Re1 {[%emt 0:00:22]} O-O {[%emt 0:00:07]} 11. Nxb6 {[%emt 0:00:07]} axb6 {[%emt 0:00:01]} 12. d4 {[%emt 0:00:03]} Re8 {[%emt 0:00:13]} 13. Bf1 {[%emt 0:00:46]} exd4 {[%emt 0:01:10]} 14. Qxd4 {[%emt 0:00:00]} c5 {[%emt 0:00:07]} 15. Qd3 {[%emt 0:00:07]} Bd7 {[%emt 0:00:07]} 16. Qxd6 {[%emt 0:00:18]} Nxe4 {[%emt 0:00:03]} 17. Qd3 {[%emt 0:00:15]} Bc6 {[%emt 0:00:05]} 18. Qxd8 {[%emt 0:00:09]} Raxd8 {[%emt 0:00:00]} 19. Be3 {[%emt 0:00:02]} Nd6 {[%emt 0:00:26]} 20. Nd2 {[%emt 0:00:31]} Nf5 {[%emt 0:00:12]} 21. Nc4 {[%emt 0:00:01]} b5 {[%emt 0:00:07]} 22. Na5 {[%emt 0:00:01]} Nxe3 {[%emt 0:00:13]} 23. fxe3 {[%emt 0:00:08]} Rd2 {[%emt 0:00:30]} 24. Rac1 {[%emt 0:00:40]} c4 {[%emt 0:00:34]} 25. a4 {[%emt 0:00:35]} Nh4 {[%emt 0:01:13]} 26. Red1 {[%emt 0:00:48]} c3 {[%emt 0:00:17]} 27. Rxd2 {[%emt 0:00:34]} cxd2 {[%emt 0:00:07]} 28. Rd1 {[%emt 0:00:01]} bxa4 {[%emt 0:00:26]} 29. Rxd2 {[%emt 0:00:11]} Be4 {[%emt 0:00:19]} 30. Nc4 {[%emt 0:00:32]} Bc6 {[%emt 0:00:59]} 31. Na5 {[%emt 0:00:05]} Nf5 {[%emt 0:00:23]} 32. Nxc6 {[%emt 0:00:14]} bxc6 {[%emt 0:00:00]} 33. e4 {[%emt 0:00:01]} Ng3 {[%emt 0:00:01]} 34. Bc4 {[%emt 0:00:16]} Nxe4 {[%emt 0:00:19]} 35. Rd7 {[%emt 0:00:01]} Ng5 {[%emt 0:00:01]} 36. Rc7 {[%emt 0:00:27]} Rb8 {[%emt 0:00:20]} 37. b3 {[%emt 0:00:09]} axb3 {[%emt 0:00:06]} 38. Bxb3 {[%emt 0:00:14]} Rb6 {[%emt 0:00:10]} 39. Kf2 {[%emt 0:00:01]} h5 {[%emt 0:00:18]} 40. Ke3 {[%emt 0:00:16]} h4 {[%emt 0:01:02]} 41. Kf4 {[%emt 0:00:51]} Ne6+ {[%emt 0:00:01]} 42. Bxe6 {[%emt 0:00:01]} fxe6 {[%emt 0:00:00]} 43. c4 {[%emt 0:00:01]} Rb2 {[%emt 0:00:05]} 44. Kf3 {[%emt 0:00:07]} Rb3+ {[%emt 0:00:05]} 45. Kf2 {[%emt 0:00:01]} Rb6 {[%emt 0:00:07]} 46. c5 {[%emt 0:00:06]} Ra6 {[%emt 0:00:01]} 47. Kf3 {[%emt 0:00:01]} Kh7 {[%emt 0:00:03]} 48. Kg4 {[%emt 0:00:05]} Ra4+ {[%emt 0:00:06]} 49. Kg5 {[%emt 0:00:10]} Ra2 {[%emt 0:00:01]} 50. Rxc6 {[%emt 0:00:02]} Rxg2+ {[%emt 0:00:01]} 51. Kxh4 {[%emt 0:00:03]} e5 {[%emt 0:00:04]} 52. Re6 {[%emt 0:00:06]} e4 {[%emt 0:00:07]} 53. Rxe4 {[%emt 0:00:08]} Kh6 {[%emt 0:00:00]} 54. Re6+ {[%emt 0:00:00]} g6 {[%emt 0:00:01]} 55. c6 {[%emt 0:00:02]} Rg1 {[%emt 0:00:04]} 56. c7 {[%emt 0:00:05]} Rc1 {[%emt 0:00:01]} 57. Re7 {[%emt 0:00:01]} Rc4+ {[%emt 0:00:02]} 58. Kg3 {[%emt 0:00:00]} Kg5 {[%emt 0:00:00]} 59. Rf7 {[%emt 0:00:02]} Rc3+ {[%emt 0:00:02]} 60. Kg2 {[%emt 0:00:03]} Kh4 {[%emt 0:00:01]} 61. Kf2 {[%emt 0:00:08]} Rc2+ {[%emt 0:00:05]} 62. Ke3 {[%emt 0:00:01]} Kxh3 {[%emt 0:00:03]} 63. Kd3 {[%emt 0:00:02]} Rc6 {[%emt 0:00:02]} 64. Kd4 {[%emt 0:00:02]} Kg4 {[%emt 0:00:03]} 65. Kd5 {[%emt 0:00:07]} Rc1 {[%emt 0:00:01]} 66. Re7 {[%emt 0:00:05]} 1-0

[Event "CCT Julius Baer-D2 2024"]
[Site "Online"]
[Date "2024.09.29"]
[Round "3"]
[White "Vidit, Santosh Gujrathi"]
[Black "Martinez Alcantara, Jose Eduardo"]
[Result "1/2-1/2"]
[ECO "D24"]
[WhiteElo "2720"]
[BlackElo "2607"]
[Annotator "TA"]
[PlyCount "100"]
[EventDate "2024.09.25"]
[EventType "swiss"]
[EventCountry "NET"]
[SourceTitle "playchess.com"]
[Source "ChessBase"]
[SourceQuality "1"]
[TimeControl "600+2"]

{[%evp 9,100,18,45,34,39,32,45,34,43,29,48,10,18,14,24,15,28,10,22,3,24,37,36,20,34,29,29,0,0,12,99,99,113,117,112,105,147,154,139,110,109,115,92,108,91,87,101,-2,-17,-22,-21,-76,-75,-74,-68,-67,-72,-71,-64,-69,-75,-86,-82,-89,-82,-103,-89,-119,-95,-123,-122,-124,-115,-117,-128,-125,-128,-249,-31,-42,-34,-33,-33,-33,-35,-48,-49,-48,0,0,0,0,1]} 1. d4 {[%emt 0:00:03]} Nf6 {[%emt 0:00:04]} 2. c4 {[%emt 0:00:01]} e6 {[%emt 0:00:01]} 3. Nf3 {[%emt 0:00:01]} d5 {[%emt 0:00:02]} 4. Nc3 {[%emt 0:00:01]} dxc4 {[%emt 0:00:02]} 5. e4 {[%emt 0:00:07][%cal Be2e4,Be4e5][%mdl 32]} b5 {[%emt 0:00:01]} 6. e5 {[%emt 0:00:03]} Nd5 {[%emt 0:00:01]} 7. Nxb5 {[%emt 0:00:01]} Nb6 {[%emt 0:00:00]} 8. Be2 {[%emt 0:00:04] White is slightly better.} Nc6 {[%emt 0:00:02]} 9. Be3 {[%emt 0:00:03]} Be7 {[%emt 0:00:02]} 10. a3 {[%emt 0:00:05]} Rb8 {[%emt 0:00:09]} 11. Qc2 {[%emt 0:00:04]} Qd7 {[%emt 0:00:38]} 12. Nc3 {[%emt 0:00:05]} (12. Bxc4 Nxc4 (12... a6 13. Bd3 $11) 13. Qxc4 Na5 14. Nxc7+ Kd8 $17) 12... Na5 {[%emt 0:00:11]} 13. Rd1 {[%emt 0:00:08]} Bb7 {[%emt 0:00:02]} 14. O-O {[%emt 0:00:46]} h6 {[%emt 0:00:04]} 15. Nd2 {[%emt 0:00:20]} O-O {[%emt 0:00:11]} 16. Nde4 {[%emt 0:00:03]} Bxe4 {[%emt 0:00:34]} 17. Nxe4 {[%emt 0:00:21][%cal Oe3h6]} Qa4 {[%emt 0:00:02]} 18. Qc1 {[%emt 0:00:32][%cal Oe3h6]} Nd5 {[%emt 0:00:04]} 19. Bd2 {[%emt 0:00:05]} Rfd8 {[%emt 0:02:15]} (19... Nb3 $11 {keeps the balance.} 20. Qxc4 Nb6 (20... Qxc4 21. Bxc4 Nxd4 22. Bc1 $11) 21. Qxa4 (21. Qxc7 Nxd4 22. Nc3 Nxe2+ 23. Nxe2 Nd5 $11) 21... Nxa4) 20. Bxa5 $16 {[%emt 0:00:08]} Qxa5 {[%emt 0:00:01]} 21. Bxc4 {[%emt 0:00:01]} Qb6 {[%emt 0:00:31]} 22. Rd2 {[%emt 0:00:04]} Nf4 {[%emt 0:00:33]} 23. Rfd1 {[%emt 0:01:16]} Qc6 {[%emt 0:00:08]} 24. f3 {[%emt 0:00:11]} Qb6 {[%emt 0:00:02]} 25. g3 {[%emt 0:00:35]} Nd5 {[%emt 0:00:39]} 26. Rc2 {[%emt 0:00:05]} Bf8 {[%emt 0:00:27]} 27. Kg2 {[%emt 0:00:07]} Ne7 {[%emt 0:00:02] [#]} 28. Qf4 {[%emt 0:01:09] Dodges Nf5. White is more active.} (28. Rcd2 $1 $16) 28... Ng6 $1 $11 {[%emt 0:00:17]} 29. Qe3 {[%emt 0:01:12]} Nxe5 {[%emt 0:00:02]} 30. b4 {[%emt 0:00:01]} (30. Ba2 $11) 30... a5 $17 {[%emt 0:01:03]} 31. bxa5 {[%emt 0:00:02]} Qxa5 {[%emt 0:00:18]} 32. Be2 {[%emt 0:00:01]} Ng6 {[%emt 0:00:18]} (32... Qxa3 $2 33. Qxa3 Bxa3 34. dxe5 $18) 33. Qc3 {[%emt 0:00:22]} Qxc3 {[%emt 0:00:07]} 34. Rxc3 {[%emt 0:00:00]} Ne7 {[%emt 0:00:00]} 35. Bc4 {[%emt 0:00:34]} c6 {[%emt 0:00:02]} 36. Rd2 {[%emt 0:00:11]} Nf5 {[%emt 0:00:06]} 37. Rcd3 {[%emt 0:00:04]} Ra8 {[%emt 0:00:02]} 38. g4 {[%emt 0:00:07]} Ne7 {[%emt 0:00:01]} 39. Ra2 {[%emt 0:00:28]} Ng6 {[%emt 0:00:16]} 40. Kg3 {[%emt 0:00:10] Inhibits Nf4.} Ra4 {[%emt 0:00:15]} 41. Bb3 {[%emt 0:00:01]} Rxa3 {[%emt 0:00:21]} (41... Raxd4 42. Rxd4 Rxd4 43. a4 $15) 42. Rxa3 {[%emt 0:00:01]} Bxa3 {[%emt 0:00:00]} 43. Bxe6 {[%emt 0:00:01] [#]} Bb2 $2 {[%emt 0:00:41]} (43... fxe6 44. Rxa3 Rxd4 45. Ra8+ Kf7 46. Ra7+ Ne7 47. h4 $11) (43... Be7 $1 $19 {[%cal Re7h4]} 44. Bxf7+ (44. Bc4 $2 Bh4+ 45. Kh3 Be1 $19) 44... Kxf7) 44. Bc4 {[%emt 0:00:20]} Bxd4 {[%emt 0:00:03]} 45. f4 {[%emt 0:00:02] Repels Ne5} Bb6 {[%emt 0:00:11]} 46. Rxd8+ {[%emt 0:00:21]} Bxd8 {[%emt 0:00:01]} 47. Nd6 {[%emt 0:00:03]} Kf8 {[%emt 0:00:06]} 48. Bxf7 {[%emt 0:00:12]} Be7 {[%emt 0:00:11]} (48... Nxf4 $15 49. Ba2 (49. Kxf4 Bc7 $17) 49... Bc7) 49. Bxg6 $11 {[%emt 0:00:01]} Bxd6 {[%emt 0:00:00]} 50. Kf3 {[%emt 0:00:01]} Ke7 {[%emt 0:00:02] What a bad dream for Black.   Weighted Error Value: White=0.14 (very precise) /Black=0.13 (very precise) .  Missed win:     	---       	Black=1      Mistake:       	White=3     	Black=2      Inaccurate:     	White=3     	Black=1      OK:         	White=14    	Black=20     Best:        	White=4     	Black=1      Strong:       	---       	Black=1} 1/2-1/2

[Event "CCT Julius Baer-D2 2024"]
[Site "Online"]
[Date "2024.09.29"]
[Round "3"]
[White "Vidit, Santosh Gujrathi"]
[Black "Martinez Alcantara, Jose Eduardo"]
[Result "1-0"]
[ECO "C54"]
[WhiteElo "2720"]
[BlackElo "2607"]
[Annotator "ChessBase"]
[PlyCount "111"]
[EventDate "2024.09.25"]
[EventType "swiss"]
[EventCountry "NET"]
[SourceTitle "playchess.com"]
[Source "ChessBase"]
[SourceQuality "1"]
[TimeControl "600+2"]

1. e4 {[%emt 0:00:04]} e5 {[%emt 0:00:04]} 2. Nf3 {[%emt 0:00:01]} Nc6 {[%emt 0:00:01]} 3. Bc4 {[%emt 0:00:03]} Bc5 {[%emt 0:00:04]} 4. c3 {[%emt 0:00:04]} Nf6 {[%emt 0:00:02]} 5. d3 {[%emt 0:00:01]} d6 {[%emt 0:00:01]} 6. O-O {[%emt 0:00:02]} h6 {[%emt 0:00:03]} 7. Nbd2 {[%emt 0:00:08]} Bb6 {[%emt 0:00:04]} 8. Bb3 {[%emt 0:00:11]} O-O {[%emt 0:00:59]} 9. Nc4 {[%emt 0:00:04]} Na5 {[%emt 0:00:10]} 10. Nxb6 {[%emt 0:00:05]} axb6 {[%emt 0:00:00]} 11. Bc2 {[%emt 0:00:01]} c5 {[%emt 0:00:13]} 12. h3 {[%emt 0:00:18]} Nc6 {[%emt 0:00:05]} 13. d4 {[%emt 0:00:05]} Re8 {[%emt 0:00:16]} 14. Re1 {[%emt 0:00:05]} Qc7 {[%emt 0:00:07]} 15. b3 {[%emt 0:01:17]} Ne7 {[%emt 0:00:06]} 16. Be3 {[%emt 0:00:27]} Ng6 {[%emt 0:00:02]} 17. Nd2 {[%emt 0:00:43]} Be6 {[%emt 0:00:20]} 18. d5 {[%emt 0:00:12]} Bd7 {[%emt 0:00:02]} 19. a4 {[%emt 0:00:05]} Rf8 {[%emt 0:00:13]} 20. Kh2 {[%emt 0:00:11]} Nh7 {[%emt 0:00:59]} 21. g3 {[%emt 0:00:03]} Nf6 {[%emt 0:01:48]} 22. f4 {[%emt 0:00:16]} exf4 {[%emt 0:00:29]} 23. gxf4 {[%emt 0:00:00]} Rfe8 {[%emt 0:00:01]} 24. Qf3 {[%emt 0:00:08]} b5 {[%emt 0:00:10]} 25. Rg1 {[%emt 0:00:18]} Kh8 {[%emt 0:00:06]} 26. axb5 {[%emt 0:01:04]} Rxa1 {[%emt 0:00:02]} 27. Rxa1 {[%emt 0:00:01]} Bxb5 {[%emt 0:00:00]} 28. c4 {[%emt 0:00:07]} Bd7 {[%emt 0:00:04]} 29. Rg1 {[%emt 0:00:07]} Qa5 {[%emt 0:00:04]} 30. Qf2 {[%emt 0:00:54]} Qc3 {[%emt 0:00:13]} 31. Bb1 {[%emt 0:00:17]} Bf5 {[%emt 0:01:26]} 32. Qf3 {[%emt 0:01:13]} Nh4 {[%emt 0:01:19]} 33. Qg3 {[%emt 0:01:17]} Nxe4 {[%emt 0:00:03]} 34. Bxe4 {[%emt 0:00:08]} Bxe4 {[%emt 0:00:00]} 35. Bf2 {[%emt 0:00:30]} Nf3+ {[%emt 0:01:10]} 36. Nxf3 {[%emt 0:00:02]} Bxf3 {[%emt 0:00:00]} 37. f5 {[%emt 0:00:09]} Re2 {[%emt 0:00:04]} 38. Rf1 {[%emt 0:00:09]} b6 {[%emt 0:00:10]} 39. Qxd6 {[%emt 0:00:11]} Kh7 {[%emt 0:00:07]} 40. Qg3 {[%emt 0:00:02]} Qxb3 {[%emt 0:00:03]} 41. d6 {[%emt 0:00:03]} Qd3 {[%emt 0:00:02]} 42. d7 {[%emt 0:00:03]} Rd2 {[%emt 0:00:08]} 43. Rg1 {[%emt 0:00:01]} Qc3 {[%emt 0:00:05]} 44. Re1 {[%emt 0:00:17]} Rxd7 {[%emt 0:00:01]} 45. Re3 {[%emt 0:00:00]} Qxc4 {[%emt 0:00:01]} 46. Rxf3 {[%emt 0:00:01]} Rd2 {[%emt 0:00:03]} 47. Rf4 {[%emt 0:00:02]} Qc2 {[%emt 0:00:02]} 48. f6 {[%emt 0:00:01]} g6 {[%emt 0:00:01]} 49. Kg2 {[%emt 0:00:02]} Qa2 {[%emt 0:00:03]} 50. Qe3 {[%emt 0:00:02]} Qd5+ {[%emt 0:00:02]} 51. Rf3 {[%emt 0:00:01]} c4 {[%emt 0:00:02]} 52. Qe7 {[%emt 0:00:03]} Rd3 {[%emt 0:00:02]} 53. Be3 {[%emt 0:00:00]} Rb3 {[%emt 0:00:03]} 54. Qf8 {[%emt 0:00:02]} Rb2+ {[%emt 0:00:01]} 55. Bf2 {[%emt 0:00:05]} Qh5 {[%emt 0:00:01]} 56. Qg7# {[%emt 0:00:02]} 1-0

[Event "CCT Julius Baer-D2 2024"]
[Site "Online"]
[Date "2024.09.29"]
[Round "3"]
[White "Sargsyan, Shant"]
[Black "So, Wesley"]
[Result "1/2-1/2"]
[ECO "D02"]
[WhiteElo "2649"]
[BlackElo "2752"]
[Annotator "TA"]
[PlyCount "73"]
[EventDate "2024.09.25"]
[EventType "swiss"]
[EventCountry "NET"]
[SourceTitle "playchess.com"]
[Source "ChessBase"]
[SourceQuality "1"]
[TimeControl "600+2"]

{[%evp 9,73,-1,14,17,14,11,10,0,9,11,8,11,4,0,7,0,15,-17,-22,-43,-46,-77,-77,-123,-137,-135,-119,-127,-139,-141,-124,-151,-163,-177,-121,-181,-204,-174,-187,-223,-89,-82,-70,-82,-78,-126,-106,-120,-59,-49,-53,-45,0,0,0,0,0,0,0,0,0,0,0,0,0,0]} 1. d4 {[%emt 0:00:02]} Nf6 {[%emt 0:00:03]} 2. Nf3 {[%emt 0:00:01]} d5 {[%emt 0:00:03]} 3. Bf4 {[%emt 0:00:00]} c5 {[%emt 0:00:05]} 4. e3 {[%emt 0:00:01]} Nc6 {[%emt 0:00:01]} 5. Nbd2 {[%emt 0:00:01]} cxd4 {[%emt 0:00:02]} 6. exd4 {[%emt 0:00:01]} Bf5 {[%emt 0:00:01]} 7. c3 {[%emt 0:00:02]} e6 {[%emt 0:00:01]} 8. Bb5 {[%emt 0:00:01]} Bd6 {[%emt 0:00:08]} 9. Bxc6+ {[%emt 0:00:15]} bxc6 {[%emt 0:00:02]} 10. Bxd6 {[%emt 0:00:00]} Qxd6 {[%emt 0:00:01]} 11. b4 {[%emt 0:00:01]} Ne4 {[%emt 0:00:24]} 12. Qc1 {[%emt 0:01:08]} a5 {[%emt 0:00:21]} 13. a3 {[%emt 0:00:01]} Nxd2 {[%emt 0:00:11]} 14. Qxd2 {[%emt 0:00:03]} Be4 {[%emt 0:00:07]} 15. Ke2 {[%emt 0:02:54]} O-O {[%emt 0:01:37]} 16. Ne1 {[%emt 0:00:24]} ({Vorzuziehen ist} 16. h4) 16... e5 $17 {[%emt 0:00:23] Weiss ist schwach auf den weissen Feldern} 17. f3 {[%emt 0:00:01]} Bg6 {[%emt 0:00:04]} 18. Kf2 {[%emt 0:00:01]} axb4 {[%emt 0:00:14]} 19. cxb4 {[%emt 0:00:06]} Rfe8 {[%emt 0:00:06]} 20. dxe5 {[%emt 0:01:42]} Qxe5 {[%emt 0:00:06]} 21. Ra2 {[%emt 0:00:01]} h5 {[%emt 0:01:39]} (21... Qf6 $19 {Droht ...d4 und aus.} 22. Rf1 d4) 22. g3 {[%emt 0:00:02]} (22. f4 $17 {ist eine bessere Verteidigung.} Qd6 23. Nf3) 22... Bb1 $19 {[%emt 0:00:07]} 23. Rb2 {[%emt 0:00:06] [#]} Bf5 {[%emt 0:00:10]} 24. Ng2 {[%emt 0:00:59] [#]} Rxa3 {[%emt 0:00:07]} (24... Bd3 $1 $19 {und Schwarz behält klar die Oberhand. Droht stark ...Qd4+.} 25. Re1 Qd4+ 26. Ne3 Rxa3) 25. Re1 $17 {[%emt 0:00:01]} Qb8 {[%emt 0:00:07] Und ...Qa7+ würde nun gewinnen.} 26. Rxe8+ {[%emt 0:00:33]} Qxe8 {[%emt 0:00:00]} 27. b5 {[%emt 0:00:04]} cxb5 {[%emt 0:01:03]} 28. Qxd5 {[%emt 0:00:01]} Bd3 {[%emt 0:00:16]} (28... Bh3 $17 29. Qc5 Qa8) 29. Qxh5 $15 {[%emt 0:00:39]} Ra1 {[%emt 0:00:08]} 30. Ne3 {[%emt 0:00:04] Wehrt Rf1+ ab} Qc8 {[%emt 0:01:27] Pariert Qc5.} (30... Qe7 {vereinfacht} 31. Qh4 Qxh4 32. gxh4 Rb1) 31. Qd5 {[%emt 0:00:31] Die Stellung ist ausgeglichen.} Qc3 {[%emt 0:00:21]} 32. Qd8+ {[%emt 0:00:02]} Kh7 {[%emt 0:00:01]} 33. Qh4+ {[%emt 0:00:01]} Kg8 {[%emt 0:00:07]} 34. Qd8+ {[%emt 0:00:03]} Kh7 {[%emt 0:00:02] ( -> ...Qe1+)} 35. Qh4+ {[%emt 0:00:02]} Kg6 {[%emt 0:00:16]} 36. Qg4+ {[%emt 0:00:20]} Kh7 {[%emt 0:00:36]} 37. Qh4+ {[%emt 0:00:07] Schwarz hatte alle Gewinnchancen.   Gewichteter Fehlerwert: Weiß=0.13 (sehr präzise) /Schwarz=0.14 (sehr präzise) .  Fehler:       	Weiß=3     	Schwarz=3     Ungenau:       	Weiß=2     	Schwarz=1     OK:         	Weiß=9     	Schwarz=15    Bester:       	Weiß=7     	Schwarz=1} 1/2-1/2

[Event "CCT Julius Baer-D2 2024"]
[Site "Online"]
[Date "2024.09.29"]
[Round "3"]
[White "Martinez Alcantara, Jose Eduardo"]
[Black "Vidit, Santosh Gujrathi"]
[Result "1-0"]
[ECO "C54"]
[WhiteElo "2607"]
[BlackElo "2720"]
[Annotator "TA"]
[PlyCount "93"]
[EventDate "2024.09.25"]
[EventType "swiss"]
[EventCountry "NET"]
[SourceTitle "playchess.com"]
[Source "ChessBase"]
[SourceQuality "1"]
[TimeControl "600+2"]

{[%evp 20,93,0,0,0,0,0,0,0,-15,-10,-14,-22,-39,-47,-48,25,-19,-17,-18,31,24,78,73,68,46,124,56,63,58,66,78,79,46,51,34,46,7,6,5,2,0,8,0,0,0,0,0,0,0,11,15,16,14,21,21,114,89,288,288,361,316,338,333,336,323,296,130,394,158,839,764,6410,489,6387,5493]} 1. e4 {[%emt 0:00:02]} e5 {[%emt 0:00:03]} 2. Nf3 {[%emt 0:00:01]} Nc6 {[%emt 0:00:01]} 3. Bc4 {[%emt 0:00:01]} Bc5 {[%emt 0:00:01]} 4. c3 {[%emt 0:00:01]} Nf6 {[%emt 0:00:02]} 5. d3 {[%emt 0:00:00]} d6 {[%emt 0:00:01]} 6. O-O {[%emt 0:00:01]} O-O {[%emt 0:00:01]} 7. h3 {[%emt 0:00:01]} Bb6 {[%emt 0:00:04] 7...a5 is setting a new trend.} 8. a4 {[%emt 0:00:01] C54: Giuoco Piano: 4 c3 Nf6, main lines with 5 d4 and 5 d3.} a5 {[%emt 0:00:03]} 9. Nbd2 {[%emt 0:00:02]} h6 {[%emt 0:00:10]} 10. Bb3 {[%emt 0:00:00]} Re8 {[%emt 0:00:22]} 11. Re1 {[%emt 0:00:02]} Be6 {[%emt 0:00:04]} 12. Bxe6 {[%emt 0:00:02]} Rxe6 {[%emt 0:00:00]} 13. Nf1 $146 {[%emt 0:00:00]} ({Predecessor:} 13. Nc4 Ba7 14. Be3 Bxe3 15. Nxe3 d5 16. exd5 Nxd5 17. Qb3 Nf4 18. Rad1 Rg6 19. Kh2 {0-1 Sadhwani,R (2545)-Diaz Perez,M (2459) Titled Tuesday intern op 6th June blitz 2020 (1)}) 13... d5 {[%emt 0:00:07]} 14. Ng3 {[%emt 0:00:03]} Qd7 {[%emt 0:00:02]} 15. Qe2 {[%emt 0:00:03]} Rd8 {[%emt 0:00:05]} 16. Be3 {[%emt 0:00:01]} (16. Nf5 {seems wilder.} Bc5 17. Bd2 dxe4 18. dxe4 Qd3 19. Rab1) 16... Bxe3 {[%emt 0:00:05]} 17. Qxe3 {[%emt 0:00:01]} Ne7 {[%emt 0:00:12]} (17... d4 $15 18. cxd4 Nxd4 19. Nxd4 Qxd4) 18. Qe2 {[%emt 0:00:04]} (18. d4 {seems wilder.} Nxe4 19. Nxe5 Qc8 20. Nxe4 dxe4 21. Qf4) 18... Ng6 {[%emt 0:00:05]} 19. Qc2 {[%emt 0:00:01]} Nf4 {[%emt 0:00:23]} (19... c5 $11 {deserves consideration.}) 20. d4 $14 {[%emt 0:00:07]} dxe4 {[%emt 0:02:23]} (20... exd4 $1 $11 {keeps the balance.} 21. Nxd4 Rxe4) 21. Nxe5 $16 {[%emt 0:00:07]} Qd5 {[%emt 0:00:01]} 22. Rad1 {[%emt 0:00:32]} Ng6 {[%emt 0:01:11]} (22... b6 $14) 23. Nf5 {[%emt 0:01:27]} ({White should try} 23. c4 $16 Qd6 24. Nxg6 (24. Nxe4 Nxe4 25. Nxg6 Ng5 $16) 24... fxg6 25. d5 (25. Nxe4 Rxe4 26. Rxe4 Nxe4 $11)) 23... Ree8 $14 {[%emt 0:00:27]} 24. Ne3 {[%emt 0:00:35]} Qe6 $1 {[%emt 0:00:01]} 25. Nxg6 {[%emt 0:00:01]} fxg6 {[%emt 0:00:00]} 26. c4 {[%emt 0:00:01]} b6 {[%emt 0:00:01]} 27. d5 {[%emt 0:00:17]} Qd6 {[%emt 0:00:13]} 28. Qc3 {[%emt 0:00:04]} Nd7 {[%emt 0:00:05]} 29. Nc2 {[%emt 0:00:02]} Nc5 {[%emt 0:00:04]} 30. b3 {[%emt 0:00:11]} Rf8 {[%emt 0:00:04]} 31. Rd2 {[%emt 0:00:12]} Rf4 {[%emt 0:00:08]} 32. Re3 {[%emt 0:00:16]} Rdf8 {[%emt 0:00:02]} 33. Nd4 {[%emt 0:00:04]} g5 {[%emt 0:00:07]} 34. Nc6 {[%emt 0:00:17]} Nd3 {[%emt 0:00:25]} 35. Rdxd3 {[%emt 0:00:01]} exd3 {[%emt 0:00:07]} 36. Qxd3 {[%emt 0:00:00]} (36. Ne7+ {looks sharper.} Kf7 37. Qxd3 Rf6 38. Nf5) 36... R4f7 {[%emt 0:00:17]} 37. f3 {[%emt 0:00:01]} h5 {[%emt 0:00:25]} (37... Rf6 $11) 38. Re5 {[%emt 0:00:23]} Qf6 $2 {[%emt 0:00:05]} (38... Rf6 $16 {keeps fighting.}) 39. Qe4 $18 {[%emt 0:00:08]} (39. Qe3 g4 $16) 39... g4 {[%emt 0:02:10]} 40. Rxh5 {[%emt 0:00:09]} ({Not} 40. fxg4 hxg4 41. Qxg4 Qd6 $11) 40... g6 {[%emt 0:00:12]} 41. Qxg4 {[%emt 0:00:01]} Re8 {[%emt 0:00:02]} 42. Rg5 {[%emt 0:00:09]} Kh7 {[%emt 0:00:07]} 43. Kh2 {[%emt 0:01:01]} (43. Qh4+ $18 {and White stays clearly on top.} Kg7 44. Qg4) 43... Re3 $2 {[%emt 0:00:23][%mdl 8192]} (43... Qd6+ $16 44. Qg3 Qxg3+ 45. Kxg3 Re2) 44. Nd4 {[%emt 0:00:53]} (44. Qh4+ $18 {and the rest is easy.} Kg8 45. Qg3) 44... Rd3 $2 {[%emt 0:00:02]} (44... Qd6+ $16 45. Qg3 Rd3 46. Qxd6 cxd6) 45. Ne6 $18 {[%emt 0:00:06]} Rxb3 {[%emt 0:00:01]} 46. Qh4+ {[%emt 0:00:06]} Kg8 {[%emt 0:00:01]} 47. Qh6 {[%emt 0:00:02]} 1-0